bitfinex/quotes_BTCUSD_20250615
["timestamp","ask_amount","ask_price","bid_price","bid_amount"]
[1749947802269,0.50772842,105640.0,105630.0,0.76025089]
[1749947803200,0.49884973,105640.0,105630.0,0.76025089]
[1749947803404,0.50772842,105640.0,105630.0,0.76005089]
[1749947803735,0.52550561,105640.0,105630.0,0.76005089]
[1749947804105,0.52550559,105640.0,105630.0,0.76005089]
[1749947804229,0.52550558,105640.0,105630.0,0.76005089]
[1749947804427,0.08139289,105640.0,105630.0,0.76005089]
[1749947804668,0.48938371,105640.0,105630.0,0.76005089]
[1749947804884,0.51603956,105640.0,105630.0,0.76005089]
[1749947805110,0.50715428,105640.0,105630.0,0.76005089]
[1749947805350,0.51603956,105640.0,105630.0,0.76005089]
[1749947805751,0.52550558,105640.0,105630.0,0.56533089]
[1749947805953,0.72186275,105640.0,105630.0,0.74115832]
[1749947806148,0.70409202,105640.0,105630.0,0.74115832]
[1749947806490,0.7129777,105640.0,105630.0,0.72219946]
[1749947806701,0.7129777,105640.0,105630.0,0.52743946]
[1749947806702,0.70409209,105640.0,105630.0,0.52743946]
[1749947806906,0.71239758,105640.0,105630.0,0.68203946]
[1749947807128,0.71239758,105640.0,105630.0,0.69150619]
[1749947807394,0.68574072,105640.0,105630.0,0.69150619]
[1749947807631,0.71239758,105640.0,105630.0,0.70097283]
[1749947807880,0.26828467,105640.0,105630.0,0.72939851]
[1749947808122,0.69462624,105640.0,105630.0,0.82554719]
[1749947808373,0.7123972,105640.0,105630.0,0.82554719]
[1749947808613,0.71239719,105640.0,105630.0,0.82554719]
[1749947808854,0.6870117,105640.0,105630.0,0.82554719]
[1749947809288,0.69589713,105640.0,105630.0,0.82554719]
[1749947809489,0.69589702,105640.0,105630.0,0.82554719]
[1749947809840,0.68701159,105640.0,105630.0,0.82554719]
[1749947810045,0.69589702,105640.0,105630.0,0.82554719]
[1749947810944,0.48880393,105640.0,105630.0,0.82554719]
[1749947811149,0.49768937,105640.0,105630.0,0.82554719]
[1749947811329,0.51604091,105640.0,105630.0,0.82554719]
[1749947812282,0.68759226,105640.0,105630.0,0.72939797]
[1749947812559,0.70536313,105640.0,105630.0,0.72939797]
[1749947812764,0.6964777,105640.0,105630.0,0.72939744]
[1749947812910,0.67870683,105640.0,105630.0,0.72939744]
[1749947813106,0.70536313,105640.0,105630.0,0.72939744]
[1749947813335,0.50657485,105640.0,105630.0,0.72939744]
[1749947813544,0.5065749,105640.0,105630.0,0.72939744]
[1749947813717,0.50657493,105640.0,105630.0,0.72939744]
[1749947813917,0.4887978,105640.0,105630.0,0.72939744]
[1749947814503,0.48879779,105640.0,105630.0,0.72939744]
[1749947814705,0.4887978,105640.0,105630.0,0.72939744]
[1749947815286,0.48879777,105640.0,105630.0,0.72939744]
[1749947815707,0.48879778,105640.0,105630.0,0.72939744]
[1749947816007,0.4799185,105640.0,105630.0,0.72939744]
[1749947816210,0.48879777,105640.0,105630.0,0.72939744]
[1749947816609,0.48879781,105640.0,105630.0,0.72939744]
[1749947816846,0.4799185,105640.0,105630.0,0.72939744]
[1749947817046,0.04468475,105640.0,105630.0,0.72939744]
[1749947817185,0.48879744,105640.0,105630.0,0.72939744]
[1749947817387,0.48879742,105640.0,105630.0,0.72939744]
[1749947817593,0.47991814,105640.0,105630.0,0.82554666]
[1749947818222,0.48938416,105640.0,105630.0,0.72939744]
[1749947818680,0.49826344,105640.0,105630.0,0.72939744]
[1749947818914,0.49826346,105640.0,105630.0,0.72939744]
[1749947819124,0.49826341,105640.0,105630.0,0.72939744]
[1749947819331,0.49826342,105640.0,105630.0,0.72939744]
[1749947819532,0.48879733,105640.0,105630.0,0.72939744]
[1749947819686,0.48879738,105640.0,105630.0,0.72939744]
[1749947819856,0.47991814,105640.0,105630.0,0.72939744]
[1749947820134,0.48879739,105640.0,105630.0,0.72939744]
[1749947820364,0.48879744,105640.0,105630.0,0.72939744]
[1749947820581,0.47991814,105640.0,105630.0,0.72939744]
[1749947820815,0.48879741,105640.0,105630.0,0.57479744]
[1749947821035,1.05813686,105640.0,105630.0,0.30969859]
[1749947821231,1.13662019,105640.0,105630.0,0.1554]
[1749947821463,1.15437612,105640.0,105630.0,0.1554]
[1749947821655,1.13491051,105640.0,105630.0,0.1554]
[1749947821869,0.69079782,105640.0,105630.0,0.1554]
[1749947822135,1.15932581,105640.0,105630.0,0.1554]
[1749947822353,1.16032581,105640.0,105630.0,0.1554]
[1749947822570,1.14256922,105640.0,105630.0,0.1554]
[1749947822770,1.13369086,105640.0,105630.0,0.1554]
[1749947822977,1.16032593,105640.0,105630.0,0.1554]
[1749947823172,1.13591046,105640.0,105630.0,0.1554]
[1749947823439,1.16032593,105640.0,105630.0,0.1544]
[1749947823634,0.57050696,105630.0,105620.0,0.44040236]
[1749947823775,1.04791338,105630.0,105620.0,0.46312134]
[1749947823990,1.02127839,105630.0,105620.0,0.46312134]
[1749947824181,1.04125461,105630.0,105620.0,0.46312134]
[1749947824577,1.01461965,105630.0,105620.0,0.46308134]
[1749947824780,1.04791335,105630.0,105620.0,0.46408134]
[1749947825007,1.03016133,105630.0,105620.0,0.46408134]
[1749947825221,1.03016749,105630.0,105620.0,0.46408134]
[1749947825416,1.04793646,105630.0,105620.0,0.46408134]
[1749947825621,1.03905198,105630.0,105620.0,0.46408134]
[1749947826018,1.04793627,105630.0,105620.0,0.46408134]
[1749947826285,1.04793633,105630.0,105620.0,0.46408134]
[1749947826486,1.04793645,105630.0,105620.0,0.46408134]
[1749947826640,1.02128292,105630.0,105620.0,0.46408134]
[1749947826840,1.02350401,105630.0,105620.0,0.46408134]
[1749947827041,1.0323884,105630.0,105620.0,0.46408134]
[1749947827245,1.04793605,105630.0,105620.0,0.46408134]
[1749947827665,1.02350402,105630.0,105620.0,0.44136236]
[1749947827891,1.04793605,105630.0,105620.0,0.44136236]
[1749947828285,1.03905168,105630.0,105620.0,0.44136236]
[1749947828755,1.0323884,105630.0,105620.0,0.44136236]
[1749947829071,1.04793605,105630.0,105620.0,0.44136236]
[1749947829240,1.03905168,105630.0,105620.0,0.44136236]
[1749947829445,1.04793609,105630.0,105620.0,0.44136236]
[1749947829924,1.03238842,105630.0,105620.0,0.44136236]
[1749947830134,1.03016732,105630.0,105620.0,0.44136236]
[1749947830336,1.04793607,105630.0,105620.0,0.44124236]
[1749947830536,1.04127232,105630.0,105620.0,0.44124236]
[1749947830720,0.60382264,105630.0,105620.0,0.44124236]
[1749947830920,1.03238802,105630.0,105620.0,0.44124236]
[1749947831127,1.04793533,105630.0,105620.0,0.44124236]
[1749947831305,1.03016696,105630.0,105620.0,0.44124236]
[1749947831506,1.03905115,105630.0,105620.0,0.44124236]
[1749947831712,1.03905114,105630.0,105620.0,0.44124236]
[1749947831950,1.01461965,105630.0,105620.0,0.44124236]
[1749947832151,1.03016696,105630.0,105620.0,0.44124236]
[1749947832308,1.04793533,105630.0,105620.0,0.44124236]
[1749947832507,1.03905115,105630.0,105620.0,0.44124236]
[1749947832724,1.03016694,105630.0,105620.0,0.44124236]
[1749947832920,1.04793528,105630.0,105620.0,0.44124236]
[1749947833121,1.03016694,105630.0,105620.0,0.44124236]
[1749947833341,1.04127214,105630.0,105620.0,0.28700236]
[1749947833547,0.57050696,105630.0,105620.0,0.44124236]
[1749947833752,1.04793518,105630.0,105620.0,0.44124236]
[1749947833960,1.04127206,105630.0,105620.0,0.44124236]
[1749947834174,1.49204784,105630.0,105620.0,0.28700236]
[1749947834388,1.48538437,105630.0,105620.0,0.15524]
[1749947834599,1.59052117,105630.0,105620.0,0.001]
[1749947834813,1.5927411,105630.0,105620.0,0.001]
[1749947835014,1.60828717,105630.0,105620.0,0.001]
[1749947835267,0.57142579,105620.0,105610.0,0.15424]
[1749947835493,1.02220103,105620.0,105610.0,0.15424]
[1749947835700,1.02396785,105620.0,105610.0,0.15424]
[1749947835912,1.01730549,105620.0,105610.0,0.15424]
[1749947836114,1.01508457,105620.0,105610.0,0.15424]
[1749947836315,0.34888359,105620.0,105610.0,0.86698967]
[1749947836526,0.3861695,105620.0,105610.0,0.91702628]
[1749947836738,0.40452123,105620.0,105610.0,0.91702628]
[1749947836946,0.3956373,105620.0,105610.0,0.40312132]
[1749947837159,0.38675345,105620.0,105610.0,0.40412132]
[1749947837364,0.38675345,105620.0,105610.0,0.42680841]
[1749947837568,0.38733725,105620.0,105610.0,0.42680841]
[1749947837779,1.03800003,105620.0,105610.0,0.38624024]
[1749947837980,1.03402483,105620.0,105610.0,0.15524]
[1749947838189,1.03286247,105620.0,105610.0,0.3540848]
[1749947838428,1.03286251,105620.0,105610.0,0.36355351]
[1749947838645,1.00842553,105620.0,105610.0,0.37302213]
[1749947838903,1.03286504,105620.0,105610.0,0.37302213]
[1749947839082,1.02397814,105620.0,105610.0,0.37302213]
[1749947839300,1.01626526,105620.0,105610.0,0.37302213]
[1749947839508,1.00959994,105620.0,105610.0,0.36355351]
[1749947839722,1.00737819,105620.0,105610.0,0.37302213]
[1749947839922,1.01626529,105620.0,105610.0,0.37302213]
[1749947840123,1.01626494,105620.0,105610.0,0.37302213]
[1749947840343,0.99849091,105620.0,105610.0,0.65902449]
[1749947840562,1.00737785,105620.0,105610.0,0.65902449]
[1749947840769,0.99849083,105620.0,105610.0,0.65902449]
[1749947840981,1.00737786,105620.0,105610.0,0.65902449]
[1749947841190,1.00737782,105620.0,105610.0,0.68359293]
[1749947841407,0.98293866,105620.0,105610.0,0.68359293]
[1749947842495,0.98293866,105620.0,105610.0,0.67412449]
[1749947842799,0.98293866,105620.0,105610.0,0.69681308]
[1749947843147,0.98293866,105620.0,105610.0,0.67412449]
[1749947843353,0.98293866,105620.0,105610.0,0.69681536]
[1749947843556,0.98293866,105620.0,105610.0,0.67412449]
[1749947844020,1.01626502,105620.0,105610.0,0.67412449]
[1749947844242,1.00959975,105620.0,105610.0,0.67412449]
[1749947844476,1.00071272,105620.0,105610.0,0.51988449]
[1749947844679,0.99849096,105620.0,105610.0,0.68367302]
[1749947844919,1.00737799,105620.0,105610.0,0.68367302]
[1749947845097,1.01626507,105620.0,105610.0,0.68367302]
[1749947845301,0.99849099,105620.0,105610.0,0.68367302]
[1749947845523,1.01626509,105620.0,105610.0,0.68367302]
[1749947846051,0.99182571,105620.0,105610.0,0.70637022]
[1749947846197,1.00737806,105620.0,105610.0,0.70637022]
[1749947846399,0.99182571,105620.0,105610.0,0.32479956]
[1749947846613,1.02579971,105620.0,105610.0,0.46397956]
[1749947846815,1.04806496,105620.0,105610.0,0.44128236]
[1749947847018,1.03917791,105620.0,105610.0,0.44128236]
[1749947847222,1.04139946,105620.0,105610.0,0.46398932]
[1749947847583,1.04806465,105620.0,105610.0,0.44128236]
[1749947847842,1.04806469,105620.0,105610.0,0.44128236]
[1749947848037,1.04806473,105620.0,105610.0,0.66283412]
[1749947848196,1.04806476,105620.0,105610.0,0.46398941]
[1749947848372,1.03917781,105620.0,105610.0,0.46398941]
[1749947848584,1.03695606,105620.0,105610.0,0.46398941]
[1749947848808,1.0280691,105620.0,105610.0,0.46398941]
[1749947848987,1.0575028,105620.0,105610.0,0.46398941]
[1749947849184,1.04861582,105620.0,105610.0,0.46398941]
[1749947849486,1.05750277,105620.0,105610.0,0.46398941]
[1749947849713,1.04861582,105620.0,105610.0,0.46398941]
[1749947849917,1.06416798,105620.0,105610.0,0.46398941]
[1749947850117,1.0307937,105620.0,105610.0,0.46398941]
[1749947850378,1.0419023,105620.0,105610.0,0.46398941]
[1749947850565,1.02190704,105620.0,105610.0,0.46398941]
[1749947850783,1.04190245,105620.0,105610.0,0.46394941]
[1749947850988,1.04190246,105620.0,105610.0,0.46394941]
[1749947851328,1.03968062,105620.0,105610.0,0.46394941]
[1749947851529,1.04190226,105620.0,105610.0,0.46394941]
[1749947851733,1.04856747,105620.0,105610.0,0.46394941]
[1749947851914,1.04856765,105620.0,105610.0,0.46394941]
[1749947852060,1.04856763,105620.0,105610.0,0.46394941]
[1749947852267,1.02190705,105620.0,105610.0,0.46394941]
[1749947852487,1.04856759,105620.0,105610.0,0.46394941]
[1749947853111,1.02412876,105620.0,105610.0,0.31917821]
[1749947853313,1.04856759,105620.0,105610.0,0.47341821]
[1749947853463,1.03912956,105620.0,105610.0,0.47341821]
[1749947853659,1.0391294,105620.0,105610.0,0.47341821]
[1749947853915,1.0302417,105620.0,105610.0,0.47341821]
[1749947854136,1.02357683,105620.0,105610.0,0.66279421]
[1749947854329,1.02292814,105620.0,105610.0,0.66279421]
[1749947854544,0.99626884,105620.0,105610.0,0.66279421]
[1749947854689,1.0229287,105620.0,105610.0,0.66279421]
[1749947854896,1.00515571,105620.0,105610.0,0.66279421]
[1749947855100,1.02292916,105620.0,105610.0,0.66279421]
[1749947855330,1.00515566,105620.0,105610.0,0.66279421]
[1749947855532,1.01626401,105620.0,105610.0,0.66279421]
[1749947855740,1.02292904,105620.0,105610.0,0.66279421]
[1749947856108,1.02105562,105620.0,105610.0,0.66279421]
[1749947856364,1.03882904,105620.0,105610.0,0.66279421]
[1749947856576,1.0232773,105620.0,105610.0,0.66279421]
[1749947856816,1.02292907,105620.0,105610.0,0.30970941]
[1749947857023,1.03216362,105620.0,105610.0,0.46394941]
[1749947857224,1.03882846,105620.0,105610.0,0.46394941]
[1749947857450,1.02994189,105620.0,105610.0,0.46394941]
[1749947857775,1.01439045,105620.0,105610.0,0.46394941]
[1749947858034,1.03882846,105620.0,105610.0,0.46394941]
[1749947858234,1.02105534,105620.0,105610.0,0.46394941]
[1749947858445,1.0299419,105620.0,105610.0,0.46394941]
[1749947858643,1.03882841,105620.0,105610.0,0.46394941]
[1749947858997,1.02105536,105620.0,105610.0,0.46394941]
[1749947859197,1.023277,105620.0,105610.0,0.46394941]
[1749947859401,1.02105538,105620.0,105610.0,0.46394941]
[1749947859610,1.03882848,105620.0,105610.0,0.46394941]
[1749947859776,1.02994192,105620.0,105610.0,0.46394941]
[1749947859968,1.023277,105620.0,105610.0,0.46394941]
[1749947860168,1.04766357,105620.0,105610.0,0.46394941]
[1749947860371,1.05432847,105620.0,105610.0,0.46394941]
[1749947860569,1.0454419,105620.0,105610.0,0.46394941]
[1749947860791,1.04766347,105620.0,105610.0,0.46394941]
[1749947861012,1.05432838,105620.0,105610.0,0.46394941]
[1749947861216,1.05432846,105620.0,105610.0,0.46394941]
[1749947861544,1.05432212,105620.0,105610.0,0.46394941]
[1749947861741,1.05431363,105620.0,105610.0,0.46394941]
[1749947861950,1.0476381,105620.0,105610.0,0.46394941]
[1749947862180,1.0299186,105620.0,105610.0,0.46394941]
[1749947862390,1.03879677,105620.0,105610.0,0.46394941]
[1749947862624,1.02991861,105620.0,105610.0,0.46394941]
[1749947862804,1.0321381,105620.0,105610.0,0.46394941]
[1749947863018,1.03879671,105620.0,105610.0,0.46394941]
[1749947863188,1.03213817,105620.0,105610.0,0.46394941]
[1749947863394,1.03879677,105620.0,105610.0,0.46394941]
[1749947863595,1.0387968,105620.0,105610.0,0.46394941]
[1749947864016,1.03879684,105620.0,105610.0,0.46394941]
[1749947864213,1.02104051,105620.0,105610.0,0.46394941]
[1749947864514,1.02991858,105620.0,105610.0,0.46394941]
[1749947864724,1.0321381,105620.0,105610.0,0.46394941]
[1749947864924,1.01438194,105620.0,105610.0,0.44124236]
[1749947865095,1.02991856,105620.0,105610.0,0.44124236]
[1749947865296,1.01216243,105620.0,105610.0,0.44124236]
[1749947865527,1.02326001,105620.0,105610.0,0.44124236]
[1749947865739,1.02104052,105620.0,105610.0,0.44124236]
[1749947865967,1.03879668,105620.0,105610.0,0.44124236]
[1749947866166,1.0299186,105620.0,105610.0,0.44124236]
[1749947866328,1.03879665,105620.0,105610.0,0.44124236]
[1749947866684,1.03879672,105620.0,105610.0,0.44124236]
[1749947866887,1.02991861,105620.0,105610.0,0.44124236]
[1749947867098,1.02991859,105620.0,105610.0,0.44124236]
[1749947867302,1.03879664,105620.0,105610.0,0.44124236]
[1749947867501,1.03879663,105620.0,105610.0,0.44124236]
[1749947867722,1.03213798,105620.0,105610.0,0.28700236]
[1749947867905,1.01216243,105620.0,105610.0,0.44124236]
[1749947868137,1.00550388,105620.0,105610.0,0.44124236]
[1749947868437,1.02326,105620.0,105610.0,0.44124236]
[1749947868730,1.03879662,105620.0,105610.0,0.44124236]
[1749947868858,1.02326002,105620.0,105610.0,0.44124236]
[1749947869059,1.03879663,105620.0,105610.0,0.15524]
[1749947869329,1.05539638,105620.0,105610.0,0.15524]
[1749947869483,1.04651835,105620.0,105610.0,0.15524]
[1749947869843,1.03764034,105620.0,105610.0,0.15524]
[1749947870003,1.03985984,105620.0,105610.0,0.15524]
[1749947870364,1.05539629,105620.0,105610.0,0.15524]
[1749947870554,1.03764035,105620.0,105610.0,0.15524]
[1749947870679,1.0487378,105620.0,105610.0,0.15524]
[1749947871281,1.05539628,105620.0,105610.0,0.15524]
[1749947871483,0.60465058,105620.0,105610.0,0.15524]
[1749947871687,1.02876874,105620.0,105610.0,0.15524]
[1749947871873,1.04876337,105620.0,105610.0,0.15524]
[1749947872080,1.05542831,105620.0,105610.0,0.15524]
[1749947872282,1.03765524,105620.0,105610.0,0.15524]
[1749947872486,1.02876874,105620.0,105610.0,0.15524]
[1749947872835,1.02105522,105620.0,105610.0,0.15524]
[1749947873096,1.01439036,105620.0,105610.0,0.22753088]
[1749947873305,1.03216332,105620.0,105610.0,0.22753088]
[1749947873539,1.03216332,105620.0,105610.0,0.15524]
[1749947873540,1.02105522,105620.0,105610.0,0.15524]
[1749947873756,1.03216352,105620.0,105610.0,0.15524]
[1749947873930,1.0299419,105620.0,105610.0,0.001]
[1749947874125,1.01439043,105620.0,105610.0,0.15524]
[1749947874334,1.03882837,105620.0,105610.0,0.15524]
[1749947874533,1.02994182,105620.0,105610.0,0.15524]
[1749947874743,1.01216877,105620.0,105610.0,0.15524]
[1749947874945,1.03882835,105620.0,105610.0,0.15524]
[1749947875137,1.03216346,105620.0,105610.0,0.15524]
[1749947875383,1.02105529,105620.0,105610.0,0.15524]
[1749947875703,1.03882835,105620.0,105610.0,0.15524]
[1749947875999,1.03216347,105620.0,105610.0,0.15524]
[1749947876231,1.0143904,105620.0,105610.0,0.15524]
[1749947876435,1.03882839,105620.0,105610.0,0.15524]
[1749947876636,1.03882894,105620.0,105610.0,0.15524]
[1749947876836,1.02994222,105620.0,105610.0,0.15524]
[1749947877015,1.03882895,105620.0,105610.0,0.15524]
[1749947877271,1.01216889,105620.0,105610.0,0.15524]
[1749947877478,1.03882894,105620.0,105610.0,0.15524]
[1749947877685,1.00515561,105620.0,105610.0,0.1647088]
[1749947877868,1.02292915,105620.0,105610.0,0.36355333]
[1749947878068,1.00515562,105620.0,105610.0,0.36355333]
[1749947878273,1.0229291,105620.0,105610.0,0.36355333]
[1749947878479,0.99849063,105620.0,105610.0,0.36355333]
[1749947878687,1.02292919,105620.0,105610.0,0.36355333]
[1749947878894,1.01404243,105620.0,105610.0,0.36355333]
[1749947879102,0.8430384,105620.0,105610.0,0.38248994]
[1749947879324,0.59775149,105620.0,105610.0,0.39889012]
[1749947879528,1.00853878,105620.0,105610.0,0.39889012]
[1749947879740,1.04186433,105620.0,105610.0,0.39889012]
[1749947879961,1.0240907,105620.0,105610.0,0.39889012]
[1749947880170,1.03355833,105620.0,105610.0,0.39889012]
[1749947880380,1.05133195,105620.0,105610.0,0.39889012]
[1749947880634,1.02689322,105620.0,105610.0,0.39889012]
[1749947880844,1.03578003,105620.0,105610.0,0.39889012]
[1749947881054,1.05133194,105620.0,105610.0,0.39889012]
[1749947881279,1.01741826,105620.0,105610.0,0.39889012]
[1749947881484,1.01741825,105620.0,105610.0,0.39889012]
[1749947882342,1.01741826,105620.0,105610.0,0.39889012]
[1749947882761,1.01741825,105620.0,105610.0,0.39889012]
[1749947882993,1.01741826,105620.0,105610.0,0.39889012]
[1749947883962,0.56442636,105620.0,105610.0,0.39889012]
[1749947884167,1.01741826,105620.0,105610.0,0.39889012]
[1749947884636,1.01741825,105620.0,105610.0,0.39889012]
[1749947884856,1.00853905,105620.0,105610.0,0.39889012]
[1749947885278,1.01741826,105620.0,105610.0,0.39889012]
[1749947885490,0.57330557,105620.0,105610.0,0.39889012]
[1749947885704,1.01741826,105620.0,105610.0,0.39889012]
[1749947886184,1.00853905,105620.0,105610.0,0.39889012]
[1749947886645,1.01741826,105620.0,105610.0,0.39889012]
[1749947886881,1.01741825,105620.0,105610.0,0.39889012]
[1749947887106,1.01741823,105620.0,105610.0,0.39889012]
[1749947887338,1.0174182,105620.0,105610.0,0.39889012]
[1749947887898,1.00853905,105620.0,105610.0,0.39889012]
[1749947888102,1.01741823,105620.0,105610.0,0.39889012]
[1749947888390,1.00853905,105620.0,105610.0,0.39889012]
[1749947888602,1.01741824,105620.0,105610.0,0.39889012]
[1749947888809,1.01741823,105620.0,105610.0,0.39889012]
[1749947889015,1.00853905,105620.0,105610.0,0.39889012]
[1749947889449,1.01741822,105620.0,105610.0,0.39889012]
[1749947890500,1.01741823,105620.0,105610.0,0.39889012]
[1749947890704,1.01741824,105620.0,105610.0,0.39889012]
[1749947890916,1.01741822,105620.0,105610.0,0.39889012]
[1749947891531,1.04186446,105620.0,105610.0,0.39889012]
[1749947891735,1.03297768,105620.0,105610.0,0.39889012]
[1749947891938,1.0240909,105620.0,105610.0,0.39889012]
[1749947892115,1.04186445,105620.0,105610.0,0.39889012]
[1749947892559,1.0240909,105620.0,105610.0,0.39889012]
[1749947892747,1.03297768,105620.0,105610.0,0.39889012]
[1749947892957,1.04186445,105620.0,105610.0,0.39889012]
[1749947893773,1.03519937,105620.0,105610.0,0.38942177]
[1749947893982,1.03239691,105620.0,105610.0,0.38942177]
[1749947894190,1.02573183,105620.0,105610.0,0.38942177]
[1749947894600,1.01404246,105620.0,105610.0,0.1811088]
[1749947894816,1.01404248,105620.0,105610.0,0.17164]
[1749947895017,1.02292926,105620.0,105610.0,0.1811088]
[1749947895219,1.01346137,105620.0,105610.0,0.1811088]
[1749947895429,1.01346134,105620.0,105610.0,0.1811088]
[1749947895634,0.98902273,105620.0,105610.0,0.1811088]
[1749947895872,1.00457452,105620.0,105610.0,0.17164]
[1749947896093,0.99790946,105620.0,105610.0,0.17164]
[1749947896294,1.00679615,105620.0,105610.0,0.17164]
[1749947896498,0.98680103,105620.0,105610.0,0.17164]
[1749947896704,0.98902272,105620.0,105610.0,0.17164]
[1749947896908,0.99568777,105620.0,105610.0,0.17164]
[1749947897112,1.0067962,105620.0,105610.0,0.17164]
[1749947897314,1.00679617,105620.0,105610.0,0.17164]
[1749947897520,0.98902271,105620.0,105610.0,0.17164]
[1749947897728,1.01346139,105620.0,105610.0,0.17164]
[1749947897934,0.99568781,105620.0,105610.0,0.17164]
[1749947898166,1.00679639,105620.0,105610.0,0.17164]
[1749947898377,1.01346149,105620.0,105610.0,0.17164]
[1749947898589,1.00679639,105620.0,105610.0,0.17164]
[1749947898774,0.98013598,105620.0,105610.0,0.17164]
[1749947898980,1.01345424,105620.0,105610.0,0.17164]
[1749947899229,1.00679059,105620.0,105610.0,0.17164]
[1749947899462,0.99568451,105620.0,105610.0,0.17164]
[1749947899667,1.01345422,105620.0,105610.0,0.17164]
[1749947899861,0.98902084,105620.0,105610.0,0.17164]
[1749947900061,1.0134542,105620.0,105610.0,0.17164]
[1749947900239,0.99568448,105620.0,105610.0,0.17164]
[1749947900444,1.01345418,105620.0,105610.0,0.17164]
[1749947900646,1.01345417,105620.0,105610.0,0.17164]
[1749947900842,0.99568447,105620.0,105610.0,0.17164]
[1749947901075,1.00679054,105620.0,105610.0,0.17164]
[1749947901274,0.99568447,105620.0,105610.0,0.17164]
[1749947901473,1.00679054,105620.0,105610.0,0.17164]
[1749947901680,0.98679962,105620.0,105610.0,0.17164]
[1749947901844,1.01345417,105620.0,105610.0,0.17164]
[1749947902036,1.01345414,105620.0,105610.0,0.17164]
[1749947902232,0.99568445,105620.0,105610.0,0.17164]
[1749947902475,0.99568439,105620.0,105610.0,0.17164]
[1749947902677,1.00679056,105620.0,105610.0,0.17164]
[1749947902878,0.98902084,105620.0,105610.0,0.17164]
[1749947903089,0.98679958,105620.0,105610.0,0.17164]
[1749947903242,1.01345398,105620.0,105610.0,0.17164]
[1749947903457,0.98679958,105620.0,105610.0,0.17164]
[1749947903663,0.98679957,105620.0,105610.0,0.17164]
[1749947904079,1.00456911,105620.0,105610.0,0.17164]
[1749947904282,1.01345396,105620.0,105610.0,0.17164]
[1749947904535,0.99790556,105620.0,105610.0,0.17164]
[1749947904731,1.00456915,105620.0,105610.0,0.15524]
[1749947904949,1.01345399,105620.0,105610.0,0.15524]
[1749947905158,0.98902082,105620.0,105610.0,0.15524]
[1749947905345,0.98013598,105620.0,105610.0,0.15524]
[1749947905652,0.99568441,105620.0,105610.0,0.15524]
[1749947905857,1.00679038,105620.0,105610.0,0.15524]
[1749947906017,1.00456918,105620.0,105610.0,0.15524]
[1749947906215,0.99568438,105620.0,105610.0,0.15524]
[1749947906439,0.98013598,105620.0,105610.0,0.15524]
[1749947906617,1.00456918,105620.0,105610.0,0.15524]
[1749947906835,1.01345398,105620.0,105610.0,0.15524]
[1749947907159,0.99568438,105620.0,105610.0,0.15524]
[1749947907411,1.01345402,105620.0,105610.0,0.15524]
[1749947907622,1.01345399,105620.0,105610.0,0.15524]
[1749947907828,1.01345396,105620.0,105610.0,0.15524]
[1749947908003,1.01345394,105620.0,105610.0,0.15524]
[1749947908240,1.0134539,105620.0,105610.0,0.15524]
[1749947908437,1.01345389,105620.0,105610.0,0.15524]
[1749947908648,1.01345394,105620.0,105610.0,0.15524]
[1749947908853,1.00456915,105620.0,105610.0,0.15524]
[1749947909057,1.01345392,105620.0,105610.0,0.15524]
[1749947909258,1.1678613,105620.0,105610.0,0.15524]
[1749947909575,1.17674609,105620.0,105610.0,0.15524]
[1749947909821,1.15897652,105620.0,105610.0,0.001]
[1749947909994,1.17674608,105620.0,105610.0,0.001]
[1749947910200,1.18563085,105620.0,105610.0,0.001]
[1749947910398,1.16786129,105620.0,105610.0,0.001]
[1749947910896,1.18563085,105620.0,105610.0,0.001]
[1749947911064,1.17896727,105620.0,105610.0,0.001]
[1749947911207,1.16615043,105620.0,105610.0,0.0174]
[1749947911416,1.17503714,105620.0,105610.0,0.0174]
[1749947911624,1.16392874,105620.0,105610.0,0.0174]
[1749947911844,1.18392384,105620.0,105610.0,0.0174]
[1749947912053,1.16392876,105620.0,105610.0,0.001]
[1749947912253,1.19058892,105620.0,105610.0,0.001]
[1749947912651,1.19058886,105620.0,105610.0,0.001]
[1749947913054,1.19058885,105620.0,105610.0,0.001]
[1749947913594,1.19058886,105620.0,105610.0,0.001]
[1749947913800,1.17281544,105620.0,105610.0,0.001]
[1749947913978,1.19058887,105620.0,105610.0,0.001]
[1749947914176,1.15726372,105620.0,105610.0,0.001]
[1749947914349,1.16615042,105620.0,105610.0,0.001]
[1749947914546,1.16392869,105620.0,105610.0,0.001]
[1749947914763,1.18170207,105620.0,105610.0,0.001]
[1749947914982,1.16615041,105620.0,105610.0,0.001]
[1749947915178,1.1661504,105620.0,105610.0,0.001]
[1749947915413,1.1817021,105620.0,105610.0,0.001]
[1749947915614,1.19058877,105620.0,105610.0,0.001]
[1749947915820,1.19058862,105620.0,105610.0,0.001]
[1749947916020,1.19058863,105620.0,105610.0,0.001]
[1749947916231,1.18911514,105620.0,105610.0,0.001]
[1749947916421,1.18245027,105620.0,105610.0,0.001]
[1749947916630,1.19800166,105620.0,105610.0,0.001]
[1749947916932,1.20688815,105620.0,105610.0,0.001]
[1749947917150,1.20688814,105620.0,105610.0,0.001]
[1749947917689,1.1802286,105620.0,105610.0,0.001]
[1749947917892,1.20688825,105620.0,105610.0,0.001]
[1749947918136,1.20688829,105620.0,105610.0,0.001]
[1749947918361,1.18910975,105620.0,105610.0,0.001]
[1749947918642,1.20686788,105620.0,105610.0,0.001]
[1749947918845,1.20686792,105620.0,105610.0,0.001]
[1749947919043,1.20686793,105620.0,105610.0,0.001]
[1749947919347,1.18910581,105620.0,105610.0,0.001]
[1749947919545,1.19798762,105620.0,105610.0,0.001]
[1749947919752,1.20686949,105620.0,105610.0,0.001]
[1749947919952,1.18910642,105620.0,105610.0,0.001]
[1749947920156,1.20687258,105620.0,105610.0,0.001]
[1749947920359,1.20687299,105620.0,105610.0,0.001]
[1749947920504,1.18022558,105620.0,105610.0,0.001]
[1749947920705,1.20687314,105620.0,105610.0,0.001]
[1749947920907,1.18244623,105620.0,105610.0,0.001]
[1749947921109,1.19132875,105620.0,105610.0,0.001]
[1749947921328,1.20021126,105620.0,105610.0,0.001]
[1749947921531,1.18910811,105620.0,105610.0,0.001]
[1749947921768,1.17356372,105620.0,105610.0,0.001]
[1749947922083,1.20687303,105620.0,105610.0,0.001]
[1749947922363,1.1824462,105620.0,105610.0,0.001]
[1749947922594,1.20687304,105620.0,105610.0,0.001]
[1749947923015,1.20021118,105620.0,105610.0,0.001]
[1749947923207,1.20021119,105620.0,105610.0,0.001]
[1749947923449,1.18244622,105620.0,105610.0,0.001]
[1749947923667,1.18910809,105620.0,105610.0,0.001]
[1749947923889,1.18244621,105620.0,105610.0,0.001]
[1749947924104,1.20687307,105620.0,105610.0,0.001]
[1749947924321,1.19799055,105620.0,105610.0,0.001]
[1749947924539,1.1824462,105620.0,105610.0,0.001]